[Event "Lliga Catalana 2024"]
[Site "Catalonia"]
[Date "2024.02.24"]
[Round "6.5"]
[White "Salinas Tomas, Daniel"]
[Black "Pijuan Herranz, Manuel"]
[Result "1-0"]
[ECO "E05"]
[WhiteElo "2363"]
[BlackElo "2230"]
[Annotator "TA"]
[PlyCount "65"]
[EventDate "2024.01.18"]
[EventType "team-tourn"]
[EventCountry "ESP"]
[SourceTitle "playchess.com"]
[Source "ChessBase"]
[SourceQuality "1"]
[TimeControl "5400+30"]

{[%evp 13,65,14,24,3,66,58,58,22,23,23,31,33,34,29,40,23,31,27,47,39,75,47,54,50,66,68,69,55,54,57,54,50,50,50,54,56,70,48,55,57,54,45,57,39,46,45,50,41,73,74,68,52,327,314]} 1. d4 {[%emt 0:00:04]} d5 {[%emt 0:00:05]} 2. c4 {[%emt 0:00:10]} e6 {[%emt 0:00:06]} 3. Nf3 {[%emt 0:00:08]} Nf6 {[%emt 0:00:08]} 4. g3 {[%emt 0:00:06]} Be7 {[%emt 0:00:27]} 5. Bg2 {[%emt 0:00:08]} O-O {[%emt 0:00:12]} 6. O-O {[%emt 0:00:06]} dxc4 {[%emt 0:00:08]} 7. Qc2 {[%emt 0:00:07]} a6 {[%emt 0:00:14]} 8. Rd1 {[%emt 0:00:09]} Nc6 {[%emt 0:02:56] Lässt Ne5 nicht zu} (8... b5 $11) 9. Qxc4 $14 {[%emt 0:01:17] Weiß steht aktiver.} Qd5 {[%emt 0:01:10]} 10. Qxd5 {[%emt 0:03:39] Weiß steht etwas besser.} exd5 {[%emt 0:01:27]} 11. Bf4 {[%emt 0:00:37]} Bd6 {[%emt 0:14:57]} 12. Bxd6 {[%emt 0:00:34]} cxd6 {[%emt 0:00:09]} 13. Nc3 {[%emt 0:00:13]} h6 {[%emt 0:02:18]} 14. e3 {[%emt 0:00:32]} Be6 {[%emt 0:04:07]} 15. Ne1 {[%emt 0:02:05]} Na5 {[%emt 0:01:40]} 16. Nd3 {[%emt 0:00:41] Schwarz muss nun Nf4 beachten.} Nc4 {[%emt 0:04:10]} 17. b3 {[%emt 0:00:21]} Nb6 {[%emt 0:01:26]} 18. Rdc1 {[%emt 0:04:26]} Rac8 {[%emt 0:01:29]} 19. a4 {[%emt 0:00:22][%cal Ba2a4,Ba4a5][%mdl 32]} Rc7 {[%emt 0:02:23]} 20. a5 {[%emt 0:09:26]} Rfc8 {[%emt 0:02:37]} 21. Na2 {[%emt 0:01:46]} (21. axb6 Rxc3 22. Rxc3 Rxc3 $17) 21... Rxc1+ {[%emt 0:06:45]} 22. Rxc1 {[%emt 0:00:12]} Rxc1+ {[%emt 0:00:18]} 23. Ndxc1 {[%emt 0:00:27]} Nc8 {[%emt 0:01:09]} 24. Nb4 {[%emt 0:00:12]} Na7 {[%emt 0:03:56]} 25. Bf1 {[%emt 0:10:21]} Kf8 {[%emt 0:02:51]} 26. Nca2 {[%emt 0:14:29]} Ke7 {[%emt 0:12:20]} 27. Nc3 {[%emt 0:00:43]} Kd7 {[%emt 0:00:28]} 28. f3 {[%emt 0:01:05]} Nc6 {[%emt 0:03:04]} 29. Nxc6 {[%emt 0:00:07]} Kxc6 {[%emt 0:00:10]} 30. b4 {[%emt 0:01:12][%cal Bb3b4,Bb4b5][%mdl 32]} Bf5 {[%emt 0:06:13]} 31. g4 {[%emt 0:00:44]} Bc2 {[%emt 0:00:13]} 32. h4 {[%emt 0:50:01]} Ne8 $2 {[%mdl 8192] [#]} ({Vorzuziehen ist} 32... Bb3 $14) 33. b5+ {[%emt 0:00:30] Gewichteter Fehlerwert: Weiß=0.09 (makellos) /Schwarz=0.31.  Verlustzug:     	---       	Schwarz=1     Fehler:       	---       	Schwarz=1     Ungenau:       	Weiß=2     	Schwarz=2     OK:         	Weiß=12    	Schwarz=8     Bester:       	Weiß=1     	---} 1-0

[Event "Lliga Catalana 2024"]
[Site "Catalonia"]
[Date "2024.02.24"]
[Round "6.5"]
[White "Ventura Bolet, Alexandre"]
[Black "Bagheri, Amir"]
[Result "0-1"]
[ECO "A07"]
[WhiteElo "2242"]
[BlackElo "2381"]
[Annotator "TA"]
[PlyCount "118"]
[EventDate "2024.01.18"]
[EventType "team-tourn"]
[EventCountry "ESP"]
[SourceTitle "playchess.com"]
[Source "ChessBase"]
[SourceQuality "1"]
[TimeControl "5400+30"]

{[%evp 9,118,-15,-22,-26,-15,-26,-15,-21,-25,-34,-40,-35,-25,-36,-32,-37,-32,-30,-29,-36,-25,-34,-23,-37,-27,-88,-77,-147,-147,-160,-156,-175,-173,-196,-141,-145,-111,-116,-64,-91,0,0,0,-107,-112,-106,-108,-102,-93,-93,-85,-177,-170,-151,-110,-175,-161,-200,-224,-263,-260,-298,-299,-412,-401,-401,-306,-431,-427,-419,-401,-381,-343,-383,-386,-376,-358,-404,-269,-264,-269,-270,-270,-269,-269,-269,-269,-269,-269,-312,-306,-334,-334,-327,-327,-327,-319,-319,-319,-312,-312,-312,-312,-562,-553,-672,-648,-29977,-29978,-29986,-29987]} 1. Nf3 {[%emt 0:00:08]} d5 {[%emt 0:01:59]} 2. g3 {[%emt 0:02:06]} c6 {[%emt 0:00:56]} 3. Bg2 {[%emt 0:00:08]} Bg4 {[%emt 0:00:52]} 4. O-O {[%emt 0:01:02]} Nd7 {[%emt 0:00:06]} 5. c4 {[%emt 0:02:29]} Bxf3 {[%emt 0:02:40]} 6. Bxf3 {[%emt 0:00:39]} Ne5 {[%emt 0:01:39]} 7. cxd5 {[%emt 0:01:33]} Nxf3+ {[%emt 0:00:19]} 8. exf3 {[%emt 0:00:07] The position is equal.} Qxd5 {[%emt 0:01:00]} 9. d4 {[%emt 0:05:42]} e6 {[%emt 0:02:08]} 10. Nc3 {[%emt 0:01:02]} Qd7 {[%emt 0:03:14]} 11. Be3 {[%emt 0:09:38]} Nf6 {[%emt 0:01:06]} 12. Qb3 {[%emt 0:08:29]} Be7 {[%emt 0:01:09]} 13. Rfd1 {[%emt 0:00:27]} O-O {[%emt 0:00:11]} 14. a4 {[%emt 0:18:52]} a5 {[%emt 0:04:55]} 15. Ne4 {[%emt 0:07:10]} Nd5 {[%emt 0:05:30]} 16. Nd2 {[%emt 0:03:09]} b5 {[%emt 0:04:36]} 17. Rac1 {[%emt 0:04:42]} (17. Rdc1 $11 {keeps the balance.}) 17... Rfb8 {[%emt 0:00:38]} 18. axb5 {[%emt 0:05:49]} (18. Qc2 $142) 18... cxb5 $17 {[%emt 0:00:23]} 19. Ne4 {[%emt 0:01:51]} a4 {[%emt 0:01:09]} 20. Qc2 {[%emt 0:01:51]} b4 {[%emt 0:02:31]} 21. Nc5 {[%emt 0:01:49]} Qe8 {[%emt 0:02:44]} (21... Qc6 $19 22. Qd3 a3) 22. Ra1 {[%emt 0:05:54]} g6 {[%emt 0:06:51]} 23. Bh6 {[%emt 0:02:46][%cal Ra1a4]} (23. Nxa4 $2 {too greedy.} b3 24. Qc4 Rb4 $19) 23... b3 {[%emt 0:06:09]} (23... a3 $17 {[%cal Ob4b3] Strongly threatening ...b3!} 24. Rd3 axb2 25. Rxa8 Rxa8 26. Qxb2 Qb5) 24. Qd2 {[%emt 0:02:03]} Nb4 {[%emt 0:02:47]} (24... Qb5 $17 25. h4 Bf6) 25. Qf4 $11 {[%emt 0:01:44][%cal Oa1a4]} Nd5 {[%emt 0:02:45]} (25... a3 $11 26. bxa3 (26. Rxa3 Nd5 $11) 26... Nd5) 26. Qd2 $1 $17 {[%emt 0:00:09]} Bf6 {[%emt 0:01:17]} 27. h4 {[%emt 0:01:48]} Rb4 $36 {[%emt 0:04:05][%mdl 2048] White is under strong pressure.} 28. Be3 {[%emt 0:03:25]} Rc4 {[%emt 0:04:39]} 29. Rdc1 {[%emt 0:01:08] Wards off Rc2} Rxc1+ {[%emt 0:01:30]} 30. Qxc1 {[%emt 0:01:13]} (30. Rxc1 $17 h5 31. Kg2) 30... Qb5 $19 {[%emt 0:01:43][%cal Oa4a3]} 31. Qd1 {[%emt 0:01:18]} Nb6 {[%emt 0:03:17][%cal Bd5b6,Bb6c4,Bc4a3][%mdl 32] Black has more active pieces.} 32. Ne4 {[%emt 0:02:55]} (32. Qf1 $17 Qb4 33. Nd3) 32... Bg7 {[%emt 0:00:48]} 33. Rb1 {[%emt 0:00:56]} Nc4 {[%emt 0:04:43]} 34. Qd3 {[%emt 0:02:20] [#]} Na3 $1 {[%emt 0:00:48][%mdl 512]} 35. Qxb5 {[%emt 0:00:25]} Nxb5 {[%emt 0:00:05]} 36. Rd1 {[%emt 0:00:39]} a3 {[%emt 0:08:38]} (36... f5 $2 37. Nc5 $19) 37. bxa3 {[%emt 0:00:06]} Nxa3 {[%emt 0:01:27]} 38. Kg2 {[%emt 0:00:53]} (38. Nd2 $142 b2 39. Kg2) 38... b2 {[%emt 0:02:53]} 39. Nd2 {[%emt 0:00:07]} Bf8 {[%emt 0:02:34]} 40. Nb1 {[%emt 0:00:34]} Bb4 {[%emt 0:01:02]} 41. d5 {[%emt 0:01:19]} exd5 {[%emt 0:05:45]} 42. Bd4 {[%emt 0:00:12]} Nc4 {[%emt 0:00:06]} 43. Rd3 {[%emt 0:00:46]} Bf8 {[%emt 0:02:04] [#] aiming for ...Ra1.} 44. Bxb2 {[%emt 0:00:33]} Nxb2 {[%emt 0:00:06]} 45. Rxd5 {[%emt 0:00:02]} Bb4 {[%emt 0:00:59]} 46. Nd2 {[%emt 0:00:51]} Bxd2 {[%emt 0:00:06]} 47. Rxd2 {[%emt 0:00:04][%mdl 4096] Endgame. KRN-KR} Nc4 {[%emt 0:00:05]} 48. Rd4 {[%emt 0:00:31]} Ne5 {[%emt 0:00:27]} 49. Rd5 {[%emt 0:00:48]} f6 {[%emt 0:00:45]} 50. f4 {[%emt 0:00:44]} Ng4 {[%emt 0:00:32]} 51. Rd2 {[%emt 0:00:10] Dodges Ra2} Kg7 52. Re2 f5 53. Rb2 Ra7 54. Re2 Kf7 55. Rb2 Ke6 56. f3 $2 (56. h5) 56... Ne3+ 57. Kh3 Ra1 {White must now prevent ...Rh1+.} 58. g4 Rh1+ 59. Kg3 Nf1+ {Weighted Error Value: White=0.35/Black=0.14 (very precise) .  Mistake:       	White=6     	Black=4      Inaccurate:     	White=3     	Black=1      OK:         	White=17    	Black=30     Best:        	White=1     	Black=2      Strong:       	White=1     	---} 0-1

[Event "Lliga Catalana 2024"]
[Site "Catalonia"]
[Date "2024.02.24"]
[Round "6.6"]
[White "Salgado Allaria, Carlos"]
[Black "Fortuny Profitos, Jordi"]
[Result "1/2-1/2"]
[ECO "A49"]
[WhiteElo "2228"]
[BlackElo "2120"]
[Annotator "TA"]
[PlyCount "56"]
[EventDate "2024.01.18"]
[EventType "team-tourn"]
[EventCountry "ESP"]
[SourceTitle "playchess.com"]
[Source "ChessBase"]
[SourceQuality "1"]
[TimeControl "5400+30"]

{[%evp 13,56,21,36,30,35,24,28,21,14,17,43,51,48,12,15,6,11,14,8,4,22,8,8,15,10,6,8,0,0,0,22,33,26,29,31,15,51,51,51,27,39,18,22,25,20]} 1. Nf3 {[%emt 0:00:04]} Nf6 {[%emt 0:00:24]} 2. g3 {[%emt 0:00:25]} d6 {[%emt 0:01:03]} 3. d4 {[%emt 0:00:56]} g6 {[%emt 0:00:09]} 4. b3 {[%emt 0:01:13]} Bg7 {[%emt 0:00:41]} 5. Bb2 {[%emt 0:00:09]} O-O {[%emt 0:01:21]} 6. Bg2 {[%emt 0:00:07]} c6 {[%emt 0:03:56]} 7. O-O {[%emt 0:02:52]} Bg4 {[%emt 0:03:17]} 8. h3 {[%emt 0:03:46]} Bxf3 {[%emt 0:02:38]} 9. Bxf3 {[%emt 0:00:09]} d5 {[%emt 0:00:41]} 10. Nd2 {[%emt 0:01:09]} Nbd7 {[%emt 0:00:52]} 11. c4 {[%emt 0:04:03]} b5 {[%emt 0:05:54]} 12. Qc2 {[%emt 0:02:30]} Re8 {[%emt 0:06:19]} 13. e4 {[%emt 0:05:23]} dxe4 {[%emt 0:06:50]} 14. Nxe4 {[%emt 0:00:30]} Nxe4 {[%emt 0:06:01]} 15. Bxe4 {[%emt 0:00:24][%cal Bf3e4,Be4d3,Bd3c4][%mdl 32] Das Läuferpaar ist gut.} Rc8 {[%emt 0:00:13]} 16. Rfd1 {[%emt 0:03:15]} Qa5 {[%emt 0:03:16]} 17. Bc3 {[%emt 0:09:55]} Qa6 {[%emt 0:01:32]} 18. Bd3 {[%emt 0:17:04]} e5 {[%emt 0:03:33]} 19. dxe5 {[%emt 0:11:58]} Nxe5 {[%emt 0:00:09]} 20. Bxe5 {[%emt 0:00:41]} Bxe5 {[%emt 0:04:15]} 21. Rac1 {[%emt 0:00:28]} bxc4 {[%emt 0:01:27]} 22. Bxc4 {[%emt 0:02:07]} Qb7 {[%emt 0:03:12]} 23. Qd3 {[%emt 0:05:14] [#] Und Ba6 würde nun gewinnen.} Qe7 {[%emt 0:01:52]} 24. Qf3 {[%emt 0:02:12]} Qf6 {[%emt 0:04:52]} 25. Qxf6 {[%emt 0:01:04]} Bxf6 {[%emt 0:00:01]} 26. Rd7 {[%emt 0:00:18]} Re7 {[%emt 0:00:16]} 27. Rcd1 {[%emt 0:00:06]} Rc7 {[%emt 0:03:30]} 28. Rxc7 {[%emt 0:06:26]} Rxc7 {[%emt 0:00:29] Gewichteter Fehlerwert: Weiß=0.07 (makellos) /Schwarz=0.06 (makellos) .  Ungenau:       	Weiß=1     	Schwarz=2     OK:         	Weiß=9     	Schwarz=9} 1/2-1/2

[Event "Lliga Catalana 2024"]
[Site "Catalonia"]
[Date "2024.02.24"]
[Round "6.6"]
[White "Gonzalez Rodriguez, Jorge A."]
[Black "Perpinya Rofes, Lluis Maria"]
[Result "1-0"]
[ECO "A25"]
[WhiteElo "2210"]
[BlackElo "2236"]
[Annotator "ChessBase"]
[PlyCount "83"]
[EventDate "2024.01.18"]
[EventType "team-tourn"]
[EventCountry "ESP"]
[SourceTitle "playchess.com"]
[Source "ChessBase"]
[SourceQuality "1"]
[TimeControl "5400+30"]

1. c4 {[%emt 0:00:30]} g6 {[%emt 0:00:18]} 2. Nc3 {[%emt 0:00:05]} Bg7 {[%emt 0:00:07]} 3. g3 {[%emt 0:00:01]} e5 {[%emt 0:00:44]} 4. Bg2 {[%emt 0:00:13]} d6 {[%emt 0:00:13]} 5. d3 {[%emt 0:00:40]} Nc6 {[%emt 0:00:18]} 6. e3 {[%emt 0:00:30]} Be6 {[%emt 0:11:00]} 7. Nge2 {[%emt 0:02:06]} h5 {[%emt 0:00:35]} 8. h3 {[%emt 0:04:17]} Qd7 {[%emt 1:21:15]} 9. Nd5 {[%emt 1:26:38]} Nd8 {[%emt 0:00:30]} 10. e4 {[%emt 0:00:00]} c6 {[%emt 0:00:00]} 11. Ne3 {[%emt 0:00:00]} Ne7 {[%emt 0:00:00]} 12. d4 {[%emt 0:00:00]} exd4 {[%emt 0:00:00]} 13. Nxd4 {[%emt 0:02:00]} O-O {[%emt 0:00:00]} 14. Nxe6 {[%emt 0:00:00]} Nxe6 {[%emt 0:00:00]} 15. O-O {[%emt 0:00:00]} Rad8 {[%emt 0:00:00]} 16. Rb1 {[%emt 0:00:00]} a6 {[%emt 0:00:00]} 17. b3 {[%emt 0:02:00]} c5 {[%emt 0:04:00]} 18. b4 {[%emt 0:00:30]} Nd4 {[%emt 0:00:00]} 19. bxc5 {[%emt 0:00:00]} dxc5 {[%emt 0:01:00]} 20. Ba3 {[%emt 0:00:00]} Qc7 {[%emt 0:00:30]} 21. Nd5 {[%emt 0:00:00]} Nxd5 {[%emt 0:00:00]} 22. exd5 {[%emt 0:00:00]} Rfe8 {[%emt 0:00:00]} 23. Bb2 {[%emt 0:02:30]} h4 {[%emt 0:00:00]} 24. gxh4 {[%emt 0:00:00]} Qf4 {[%emt 0:02:00]} 25. Bxd4 {[%emt 0:00:00]} Bxd4 {[%emt 0:00:00]} 26. Qg4 {[%emt 0:00:00]} Qxg4 {[%emt 0:00:00]} 27. hxg4 {[%emt 0:00:00]} Re2 {[%emt 0:00:00]} 28. Rxb7 {[%emt 0:00:00]} Rxa2 {[%emt 0:00:00]} 29. g5 {[%emt 0:00:00]} Rd6 {[%emt 0:00:00]} 30. Ra7 {[%emt 0:00:00]} Rc2 {[%emt 0:00:00]} 31. Kh2 {[%emt 0:01:47]} Bxf2 {[%emt 0:01:04]} 32. Be4 {[%emt 0:00:32]} Re2 {[%emt 0:01:25]} 33. Bf3 {[%emt 0:00:14]} Rb2 {[%emt 0:00:53]} 34. Kh3 {[%emt 0:00:01]} Bd4 {[%emt 0:00:32]} 35. Re1 {[%emt 0:00:16]} Rb3 {[%emt 0:01:36]} 36. Kg4 {[%emt 0:03:40]} Rb8 {[%emt 0:00:00]} 37. Ree7 {[%emt 0:00:00]} Rf8 {[%emt 0:00:28]} 38. Kf4 {[%emt 0:00:00]} Rb6 {[%emt 0:00:29]} 39. h5 {[%emt 0:00:00]} gxh5 {[%emt 0:00:31]} 40. Bxh5 {[%emt 0:00:00]} Rb1 {[%emt 0:00:12]} 41. d6 {[%emt 0:00:00]} Rf1+ {[%emt 0:01:20]} 42. Bf3 {[%emt 0:03:00]} 1-0

[Event "Lliga Catalana 2024"]
[Site "Catalonia"]
[Date "2024.02.24"]
[Round "6.7"]
[White "Bernado Lopez, Roger"]
[Black "Banos, Oscar"]
[Result "1/2-1/2"]
[ECO "B33"]
[WhiteElo "2168"]
[BlackElo "2199"]
[Annotator "RC"]
[PlyCount "52"]
[EventDate "2024.01.18"]
[EventType "team-tourn"]
[EventCountry "ESP"]
[SourceTitle "playchess.com"]
[Source "ChessBase"]
[SourceQuality "1"]
[TimeControl "5400+30"]

1. e4 {[%emt 0:00:04]} c5 {[%emt 0:00:09]} 2. Nf3 {[%emt 0:00:15]} Nc6 {[%emt 0:00:11]} 3. d4 {[%emt 0:00:13]} cxd4 {[%emt 0:00:20]} 4. Nxd4 {[%emt 0:00:06]} Nf6 {[%emt 0:00:49]} 5. Nc3 {[%emt 0:00:04]} e5 {[%emt 0:00:06]} 6. Ndb5 {[%emt 0:00:07]} d6 {[%emt 0:00:09]} 7. Bg5 {[%emt 1:33:11]} a6 {[%emt 0:00:18]} 8. Na3 {[%emt 0:00:00]} b5 {[%emt 0:00:19]} 9. Nd5 {[%emt 0:00:00]} Be7 {[%emt 0:00:18]} 10. Bxf6 {[%emt 0:00:00]} Bxf6 {[%emt 0:00:12]} 11. c4 {[%emt 0:00:00]} b4 {[%emt 0:01:14]} 12. Nc2 {[%emt 0:00:00]} O-O {[%emt 0:00:19]} 13. g3 {[%emt 0:00:00]} Bg5 {[%emt 0:03:58]} 14. Bg2 {[%emt 0:00:00]} a5 {[%emt 0:03:40]} 15. h4 {[%emt 0:00:00]} Bh6 {[%emt 0:01:55]} 16. O-O {[%emt 0:00:00]} Rb8 {[%emt 0:17:01]} 17. b3 {[%emt 0:00:00]} Be6 {[%emt 0:01:03]} 18. Qd3 {[%emt 0:00:00]} g6 {[%emt 0:06:13]} 19. Rfd1 {[%emt 0:00:00]} Kh8 {[%emt 0:02:59]} 20. a3 {[%emt 0:00:00]} bxa3 {[%emt 0:00:33]} 21. Rxa3 {[%emt 0:00:00]} Bg4 {[%emt 0:18:51]} 22. Bf3 {[%emt 0:00:00]} Be6 {[%emt 0:00:26]} 23. Qe2 {[%emt 0:00:00]} Rb7 {[%emt 0:06:36]} 24. Nc3 {[%emt 0:00:00]} Rd7 {[%emt 0:04:04]} 25. Nb5 {[%emt 0:00:00]} Qb6 {[%emt 0:03:41]} 26. Rd3 {[%emt 0:00:00]} Na7 {[%emt 0:08:54]} 1/2-1/2

[Event "Lliga Catalana 2024"]
[Site "Catalonia"]
[Date "2024.02.24"]
[Round "6.7"]
[White "Cano Sevilla, Ivan"]
[Black "Juan Bartroli, Marc"]
[Result "1-0"]
[ECO "D02"]
[WhiteElo "2094"]
[BlackElo "2140"]
[Annotator "ChessBase"]
[PlyCount "117"]
[EventDate "2024.01.18"]
[EventType "team-tourn"]
[EventCountry "ESP"]
[SourceTitle "playchess.com"]
[Source "ChessBase"]
[SourceQuality "1"]
[TimeControl "5400+30"]

1. d4 {[%emt 0:00:31]} Nf6 {[%emt 0:00:10]} 2. Bf4 {[%emt 0:00:06]} d5 {[%emt 0:00:18]} 3. e3 {[%emt 0:00:52]} e6 {[%emt 0:00:15]} 4. Nd2 {[%emt 0:00:10]} Bd6 {[%emt 0:00:17]} 5. Bg3 {[%emt 0:00:07]} O-O {[%emt 0:00:19]} 6. Ngf3 {[%emt 0:00:28]} c5 {[%emt 0:00:18]} 7. c3 {[%emt 0:00:05]} Qc7 {[%emt 0:00:29]} 8. dxc5 {[%emt 0:00:01]} Qxc5 {[%emt 0:00:16]} 9. Bd3 {[%emt 0:00:03]} Nbd7 {[%emt 0:00:46]} 10. e4 {[%emt 0:00:06]} dxe4 {[%emt 0:01:03]} 11. Bxe4 {[%emt 0:02:52]} Be7 {[%emt 0:16:00]} 12. Qe2 {[%emt 0:06:50]} Rd8 {[%emt 0:06:51]} 13. Rd1 {[%emt 0:03:28]} Qb6 {[%emt 0:11:20]} 14. Nc4 {[%emt 0:05:59]} Qa6 {[%emt 0:01:24]} 15. Bb1 {[%emt 0:01:59]} b6 {[%emt 0:05:43]} 16. Nd4 {[%emt 0:15:36]} Bb7 {[%emt 0:03:12]} 17. O-O {[%emt 0:11:12]} Bd5 {[%emt 0:03:38]} 18. Ne3 {[%emt 0:04:07]} Qxe2 {[%emt 0:01:33]} 19. Nxe2 {[%emt 0:00:03]} Bb7 {[%emt 0:01:19]} 20. Nd4 {[%emt 0:06:21]} Nc5 {[%emt 0:03:07]} 21. f3 {[%emt 0:01:00]} Nh5 {[%emt 0:08:08]} 22. Bf2 {[%emt 0:03:04]} Rac8 {[%emt 0:08:16]} 23. Bc2 {[%emt 0:02:54]} Ba6 {[%emt 0:05:00]} 24. Rfe1 {[%emt 0:03:34]} Nf4 {[%emt 0:01:38]} 25. Ng4 {[%emt 0:06:04]} Ncd3 {[%emt 0:05:25]} 26. Bxd3 {[%emt 0:00:36]} Nxd3 {[%emt 0:00:41]} 27. Re2 {[%emt 0:00:36]} Bc5 {[%emt 0:02:39]} 28. Red2 {[%emt 0:01:32]} f5 {[%emt 0:10:02]} 29. Ne3 {[%emt 0:08:21]} Kf7 {[%emt 0:03:06]} 30. g3 {[%emt 0:11:23]} Bxd4 {[%emt 0:01:32]} 31. cxd4 {[%emt 0:00:05]} Nxf2 {[%emt 0:00:26]} 32. Kxf2 {[%emt 0:00:07]} Bc4 {[%emt 0:00:42]} 33. b3 {[%emt 0:00:15]} Bd5 {[%emt 0:00:05]} 34. Ng2 {[%emt 0:00:43]} Rc3 {[%emt 0:00:29]} 35. Ne1 {[%emt 0:00:13]} Rdc8 {[%emt 0:00:32]} 36. Nd3 {[%emt 0:00:14]} Kf6 {[%emt 0:00:30]} 37. Ne5 {[%emt 0:00:07]} R8c7 {[%emt 0:00:23]} 38. h4 {[%emt 0:01:02]} a5 {[%emt 0:00:22]} 39. Ke2 {[%emt 0:02:09]} b5 {[%emt 0:00:21]} 40. Rd3 {[%emt 0:01:07]} a4 {[%emt 0:01:07]} 41. Rxc3 {[%emt 0:00:19]} Rxc3 {[%emt 0:00:01]} 42. Kd2 {[%emt 0:01:19]} b4 {[%emt 0:00:36]} 43. bxa4 {[%emt 0:02:02]} Bxa2 {[%emt 0:00:56]} 44. Ra1 {[%emt 0:00:27]} Bd5 {[%emt 0:00:27]} 45. a5 {[%emt 0:00:47]} Rc8 {[%emt 0:00:38]} 46. Nd7+ {[%emt 0:01:07]} Ke7 {[%emt 0:00:05]} 47. Nb6 {[%emt 0:00:09]} Rb8 {[%emt 0:00:27]} 48. Nxd5+ {[%emt 0:00:28]} exd5 {[%emt 0:00:00]} 49. a6 {[%emt 0:00:26]} Kd6 {[%emt 0:01:02]} 50. a7 {[%emt 0:00:13]} Ra8 {[%emt 0:00:03]} 51. Kc2 {[%emt 0:00:10]} Kc6 {[%emt 0:00:39]} 52. Kb3 {[%emt 0:00:03]} Kb5 {[%emt 0:00:57]} 53. Ra4 {[%emt 0:00:05]} Kc6 {[%emt 0:00:31]} 54. Kxb4 {[%emt 0:00:06]} Kb6 {[%emt 0:00:11]} 55. Ra5 {[%emt 0:00:38]} Kc6 {[%emt 0:00:12]} 56. Ra6+ {[%emt 0:00:26]} Kb7 {[%emt 0:00:05]} 57. Kb5 {[%emt 0:00:04]} Kc7 {[%emt 0:00:17]} 58. Ra1 {[%emt 0:00:34]} Kb7 {[%emt 0:00:04]} 59. Kc5 {[%emt 0:00:04]} 1-0

[Event "Lliga Catalana 2024"]
[Site "Catalonia"]
[Date "2024.02.24"]
[Round "6.8"]
[White "Ibanez Tarradellas, Eduardo"]
[Black "Alonso Seisdedos, Cayetano"]
[Result "1/2-1/2"]
[ECO "D02"]
[WhiteElo "2164"]
[BlackElo "2243"]
[Annotator "TA"]
[PlyCount "29"]
[EventDate "2024.01.18"]
[EventType "team-tourn"]
[EventCountry "ESP"]
[SourceTitle "playchess.com"]
[Source "ChessBase"]
[SourceQuality "1"]
[TimeControl "5400+30"]

{[%evp 9,29,0,10,1,8,0,0,0,0,4,4,0,0,0,6,0,0,0,0,0,0,-36]} 1. d4 {[%emt 0:02:10]} d5 {[%emt 0:00:06]} 2. Nf3 {[%emt 0:00:03]} Nf6 {[%emt 0:01:34]} 3. c3 {[%emt 0:00:25]} c6 {[%emt 0:08:39]} 4. Qb3 {[%emt 0:02:18]} Qb6 {[%emt 0:03:46]} 5. Bf4 {[%emt 0:00:29]} Bf5 {[%emt 0:01:57] The position is equal.} 6. Nbd2 {[%emt 0:00:35]} h6 {[%emt 0:04:02]} 7. h3 {[%emt 0:00:50]} Nbd7 {[%emt 0:03:42]} 8. e3 {[%emt 0:00:40]} e6 {[%emt 0:02:25]} 9. Be2 {[%emt 0:02:00]} Ne4 {[%emt 0:05:39]} 10. Nxe4 {[%emt 0:01:05]} Bxe4 {[%emt 0:02:48]} 11. O-O {[%emt 0:00:07]} Be7 {[%emt 0:11:45]} 12. Nd2 {[%emt 0:01:40]} Bg6 {[%emt 0:08:38]} 13. c4 {[%emt 0:05:28]} Qxb3 {[%emt 0:04:03]} 14. Nxb3 {[%emt 0:01:11]} a5 {[%emt 0:04:26]} 15. Rac1 {[%emt 0:04:25] A rather calm draw.   Weighted Error Value: White=0.02 (flawless) /Black=0.01 (flawless) .  Inaccurate:     	White=1     	---        OK:         	White=1     	Black=6} 1/2-1/2